bitfinex-derivatives/quotes_ETHF0:USTF0_20220108
["timestamp","ask_amount","ask_price","bid_price","bid_amount"]
[1641615274183,0.27414278,3210.5,3210.2,5.45490534]
[1641615274384,0.27414278,3210.5,3210.3,0.264788]
[1641615275287,0.17694646,3210.4,3210.3,0.264788]
[1641615275483,0.17694646,3210.4,3210.2,4.69710534]
[1641615276384,0.17694646,3210.7,3210.2,4.69710534]
[1641615276585,1.58911195,3210.8,3210.2,4.69710534]
[1641615276984,1.76606065,3210.7,3210.2,4.69710534]
[1641615277384,0.1769487,3210.6,3210.2,4.69710534]
[1641615277884,0.1769487,3210.6,3210.2,4.96189334]
[1641615278186,0.1769487,3210.7,3210.2,4.96189334]
[1641615281291,4.1769487,3210.7,3210.2,4.96189334]
[1641615281490,4.1769487,3210.7,3210.2,4.69710534]
[1641615281691,0.1769487,3210.6,3210.2,4.69710534]
[1641615288304,4.983802,3210.5,3210.2,4.69710534]
[1641615288703,0.1769487,3210.4,3210.2,4.69710534]
[1641615289103,4.983957,3210.3,3210.2,3.13996046]
[1641615289504,5.1609057,3210.3,3210.2,3.13996046]
[1641615293311,6.2227412,3210.3,3210.2,3.13996046]
[1641615293911,5.1609057,3210.3,3210.2,3.13996046]
[1641615294512,6.22274786,3210.3,3210.2,3.13996046]
[1641615294915,8.6656957,3210.3,3209.5,0.78022267]
[1641615295213,4.0,3209.6,3209.5,0.63032267]
[1641615295412,4.6847,3209.6,3209.5,0.63032267]
[1641615295611,9.8467707,3209.6,3209.5,0.63032267]
[1641615296612,9.8467707,3209.6,3209.2,0.031]
[1641615296913,5.8467707,3209.6,3209.2,1.31654612]
[1641615297114,0.1769487,3209.5,3209.2,1.31654612]
[1641615297512,4.985433,3209.4,3209.2,1.31654612]
[1641615297913,4.0,3209.3,3209.2,1.31654612]
[1641615298413,8.985588,3209.3,3209.2,1.31654612]
[1641615298913,11.209188,3209.3,3209.2,0.81654612]
[1641615299113,11.38620382,3209.3,3209.2,0.81654612]
[1641615299315,9.88620382,3209.3,3209.2,0.81654612]
[1641615300014,5.88620382,3209.3,3209.2,0.61654612]
[1641615300715,5.16260382,3209.3,3209.2,0.61654612]
[1641615303121,5.16260382,3209.3,3209.2,2.62133612]
[1641615304518,5.87400382,3209.3,3209.2,2.62133612]
[1641615306921,5.87400382,3209.3,3208.9,2.00479]
[1641615307122,4.0,3209.1,3208.9,2.00479]
[1641615307521,4.985976,3209.0,3208.9,2.00479]
[1641615307721,4.985976,3209.0,3208.0,1.55821248]
[1641615307722,19.945976,3209.0,3208.8,0.80455992]
[1641615307921,19.945976,3209.0,3208.0,1.55821248]
[1641615307922,12.0,3208.9,3208.0,1.55821248]
[1641615308121,4.0,3208.4,3208.0,1.55821248]
[1641615308321,4.629,3208.4,3208.0,1.55821248]
[1641615308520,4.987064,3208.3,3208.0,1.55821248]
[1641615308721,5.16407982,3208.3,3208.0,1.55821248]
[1641615309121,4.987064,3208.3,3208.0,1.55821248]
[1641615309727,4.987064,3208.3,3208.2,0.82410126]
[1641615310129,5.16412429,3208.3,3208.2,0.82410126]
[1641615310329,0.30264555,3208.9,3208.2,2.38213409]
[1641615310530,0.30264555,3208.9,3208.2,3.20983409]
[1641615310747,0.30264555,3208.9,3208.3,0.264788]
[1641615310933,4.0,3209.1,3208.5,2.00479]
[1641615311132,3.59390195,3209.2,3208.5,2.00479]
[1641615311531,0.17702882,3209.1,3208.5,2.00479]
[1641615311730,0.17702882,3209.1,3208.6,0.264788]
[1641615312331,0.17702882,3209.1,3208.7,0.640787]
[1641615312534,0.17702882,3209.1,3208.7,1.90553257]
[1641615312734,0.17702882,3209.1,3208.8,0.264788]
[1641615313132,0.17702882,3209.1,3208.7,1.90553257]
[1641615314034,0.17702882,3209.1,3208.8,1.764788]
[1641615314333,3.29283193,3210.6,3209.0,1.5]
[1641615314535,36.10443193,3210.5,3209.2,1.5]
[1641615314734,40.10443193,3210.5,3209.2,1.5]
[1641615315137,2.00479,3209.9,3209.2,2.48568391]
[1641615315335,2.00479,3209.9,3209.3,0.264788]
[1641615315535,0.1769903,3209.7,3209.4,0.640787]
[1641615315936,0.1769903,3209.7,3209.5,0.264788]
[1641615316536,0.1769903,3209.8,3209.5,0.264788]
[1641615316836,0.1769903,3209.8,3209.7,1.55738254]
[1641615317037,1.58911195,3210.3,3209.7,4.68976054]
[1641615317236,1e-08,3210.4,3210.2,1.5]
[1641615317437,1.58555698,3210.4,3210.3,0.264788]
[1641615317639,1.58555698,3210.4,3210.3,2.405575]
[1641615317836,2.00479,3210.8,3210.3,0.905575]
[1641615318035,2.00479,3210.8,3210.5,1.5]
[1641615318240,2.00479,3210.8,3210.6,0.264788]
[1641615318638,2.00479,3210.8,3210.6,1.764788]
[1641615319440,2.61259393,3210.9,3210.6,1.764788]
[1641615319642,2.61259393,3211.9,3210.8,3.05666009]
[1641615319843,2.61259393,3211.9,3211.2,1.5]
[1641615320042,2.61259393,3211.9,3211.3,0.264788]
[1641615320248,2.61259393,3211.9,3211.4,0.640787]
[1641615320650,2.61259393,3211.9,3211.5,0.264788]
[1641615320845,2.61259393,3212.3,3211.7,1.55638874]
[1641615321045,2.00479,3212.0,3211.7,1.55638874]
[1641615321246,2.61259393,3212.3,3211.8,0.264788]
[1641615322447,4.07891476,3212.8,3211.8,0.264788]
[1641615322448,3.08389393,3212.8,3211.9,1.5]
[1641615322648,3.08389393,3212.8,3211.8,0.264788]
[1641615323052,3.08389393,3212.8,3212.1,2.00479]
[1641615323453,3.08389393,3212.8,3212.1,2.910365]
[1641615323854,0.80674649,3212.9,3212.1,2.910365]
[1641615324155,0.80674649,3212.9,3212.1,6.66362437]
[1641615324356,0.80674649,3212.9,3212.5,1.5]
[1641615324654,0.80674649,3212.9,3212.6,0.264788]
[1641615325155,2.61259393,3213.0,3212.7,3.08094157]
[1641615325358,0.03,3213.1,3212.7,3.08094157]
[1641615326155,0.03,3213.1,3212.7,3.72172857]
[1641615326956,0.03,3213.1,3212.8,0.264788]
[1641615329557,0.03,3213.1,3212.7,3.08094157]
[1641615329759,0.712,3213.1,3212.7,1.07615157]
[1641615330161,4.979924,3213.0,3212.7,1.07615157]
[1641615330760,0.712,3213.1,3212.7,1.07615157]
[1641615330962,0.03,3213.1,3212.7,1.85025157]
[1641615331161,2.00479,3212.8,3212.7,3.40617536]
[1641615331361,2.00479,3212.8,3212.7,2.92057444]
[1641615331761,2.00479,3212.8,3212.7,1.36465065]
[1641615332164,2.18165009,3212.8,3212.7,1.36465065]
[1641615332362,2.18165009,3212.8,3212.7,0.59055065]
[1641615332563,0.17686009,3212.8,3212.7,0.59055065]
[1641615333265,0.17686009,3213.0,3212.7,0.59055065]
[1641615333564,0.17686009,3212.8,3212.7,0.59055065]
[1641615333965,0.17686009,3213.0,3212.7,0.59055065]
[1641615337168,2.00479,3212.8,3212.7,0.59055065]
[1641615337671,2.18165009,3212.8,3212.7,0.59055065]
[1641615338071,0.17686009,3212.8,3212.7,0.59055065]
[1641615338570,0.17686009,3213.0,3212.7,0.59055065]
[1641615338770,0.17686009,3212.8,3212.7,1.36925065]
[1641615338970,1.97688555,3213.9,3212.7,4.42515749]
[1641615339171,1.97688555,3213.9,3213.6,2.00479]
[1641615339372,1.84170881,3213.8,3213.6,3.165678]
[1641615339870,1.84170881,3213.8,3213.6,3.806465]
[1641615340470,0.1768003,3213.7,3213.6,3.806465]
[1641615340873,0.1768003,3213.7,3213.6,3.541677]
[1641615341171,0.1768003,3213.7,3213.6,4.51332812]
[1641615342072,0.1768003,3213.9,3213.6,4.51332812]
[1641615342272,0.1768003,3213.7,3213.6,4.51332812]
[1641615342473,0.0001003,3213.7,3213.6,4.51332812]
[1641615342873,0.03,3214.0,3213.6,4.77811612]
[1641615343675,0.17678906,3213.9,3213.6,4.77811612]
[1641615347577,0.17678906,3213.9,3213.6,4.51332812]
[1641615347777,0.73728906,3213.9,3213.6,4.51332812]
[1641615348378,0.17678906,3213.8,3213.6,4.51332812]
[1641615349279,0.17678906,3213.8,3213.6,2.97644112]
[1641615349578,0.17678906,3213.8,3213.6,0.97165112]
[1641615349778,1.5,3213.7,3213.6,0.97165112]
[1641615349982,1.5,3213.7,3212.6,1.55596011]
[1641615350279,4.0,3213.2,3212.6,1.55596011]
[1641615350479,0.8682,3213.2,3212.6,1.55596011]
[1641615350979,0.17678906,3213.1,3212.6,1.55596011]
[1641615351181,2.00479,3212.7,3212.6,1.55596011]
[1641615351481,2.00479,3212.7,3212.6,2.47465634]
[1641615351681,2.18157906,3212.7,3212.6,2.47465634]
[1641615352282,0.17678906,3212.7,3212.6,2.47465634]
[1641615352683,0.17678906,3213.1,3212.6,2.47465634]
[1641615353085,0.17678906,3212.7,3212.6,1.18348423]
[1641615353283,0.17678906,3212.7,3212.6,3.18827423]
[1641615353885,0.17678906,3213.0,3212.6,3.18827423]
[1641615354288,2.00479,3213.6,3213.0,1.55574951]
[1641615354486,2.00479,3213.6,3213.1,1.36162428]
[1641615354885,0.17631098,3213.5,3213.1,1.36162428]
[1641615355687,0.17631098,3213.5,3213.1,1.62641228]
[1641615355887,0.17631098,3213.5,3213.2,0.640787]
[1641615358292,0.17631098,3213.5,3213.2,0.905575]
[1641615359294,0.17631098,3213.5,3213.2,0.264788]
[1641615359494,0.17631098,3213.5,3213.1,1.36162428]
[1641615359993,0.17631098,3213.5,3213.2,0.264788]
[1641615360294,0.17631098,3213.5,3213.2,1.181188]
[1641615361495,0.17631098,3213.5,3213.4,1.55551477]
[1641615361695,0.03,3214.0,3213.5,0.264788]
[1641615361896,0.03,3214.0,3213.7,1.5]
[1641615362096,0.03,3214.0,3213.6,1.5]
[1641615362297,96.5761,3215.2,3213.7,0.905575]
[1641615362698,96.5761,3215.2,3213.7,1.90843582]
[1641615362897,0.15687392,3214.6,3213.7,1.90843582]
[1641615363299,2.00479,3214.5,3213.7,3.91322582]
[1641615363500,2.00479,3214.5,3214.4,1.55508419]
[1641615363699,2.00479,3214.5,3214.4,2.45848419]
[1641615364100,2.00479,3214.5,3214.4,0.9034]
[1641615364500,2.00479,3214.5,3214.4,2.19866822]
[1641615364700,3.50479,3214.5,3214.4,6.822e-05]
[1641615365100,2.00479,3214.5,3214.4,6.822e-05]
[1641615368804,2.67569,3214.5,3214.4,6.822e-05]
[1641615369603,4.17569,3214.5,3214.4,6.822e-05]
[1641615370006,2.67569,3214.5,3214.4,6.822e-05]
[1641615370407,2.67569,3214.5,3213.8,0.640787]
[1641615371608,2.00479,3214.1,3213.8,0.640787]
[1641615374110,2.00479,3214.1,3213.9,0.264788]
[1641615375211,2.00479,3214.5,3213.9,0.264788]
[1641615375913,2.00479,3214.5,3214.1,1.55525833]
[1641615376110,2.00479,3214.5,3214.4,1.55507452]
[1641615376312,2.00479,3214.5,3214.4,2.18337452]
[1641615377013,2.00479,3214.5,3214.4,3.4941873]
[1641615377416,2.00479,3214.5,3214.4,1.93911278]
[1641615377612,2.00479,3214.5,3214.4,1.31081278]
[1641615378712,2.16165871,3214.5,3214.4,1.31081278]
[1641615381819,3.73391227,3214.5,3214.4,0.73022069]
[1641615383318,2.16165871,3214.5,3214.4,0.73022069]
[1641615383519,2.16165871,3214.5,3213.8,1.55536718]
[1641615383819,1.5,3214.2,3213.8,1.55536718]
[1641615384018,1.5,3214.4,3213.8,2.19615418]
[1641615384218,5.13508871,3214.1,3213.8,2.19615418]
[1641615384419,3.47688555,3214.4,3213.8,2.19615418]
[1641615384420,1.58327557,3214.2,3213.8,2.19615418]
[1641615384617,1.58327557,3214.2,3213.9,1.26250835]
[1641615384818,4.978297,3214.0,3213.9,1.26250835]
[1641615385018,5.13508871,3214.1,3213.9,1.26250835]
[1641615385217,4.978297,3214.0,3213.9,1.26250835]
[1641615385418,5.13516571,3214.0,3213.9,1.26250835]
[1641615385618,7.13995571,3214.0,3213.9,1.26250835]
[1641615386518,5.13516571,3214.0,3213.9,1.26250835]
[1641615387522,0.15686871,3214.0,3213.9,1.52729635]
[1641615388319,0.15686871,3214.1,3213.9,1.52729635]
[1641615388520,1.58327557,3214.2,3214.0,1.55511805]
[1641615388720,1.58327557,3214.4,3214.1,0.264788]
[1641615389122,1.58327557,3214.4,3214.1,1.764788]
[1641615389725,1.58327557,3214.4,3214.2,2.00479]
[1641615389924,1.58327557,3214.5,3214.2,2.00479]
[1641615390124,1.58327557,3214.5,3214.3,0.264788]
[1641615390323,1.58327557,3214.5,3214.4,0.78445752]
[1641615391027,3.58806557,3214.8,3214.4,0.78445752]
[1641615391426,3.58806557,3214.8,3214.5,0.640787]
[1641615391727,4.977291,3214.7,3214.5,0.640787]
[1641615393130,6.56056657,3214.7,3214.5,0.640787]
[1641615395031,4.977291,3214.7,3214.5,0.640787]
[1641615396031,6.56056657,3214.7,3214.5,0.640787]
[1641615398133,6.56056657,3214.7,3214.6,1.55494153]
[1641615398434,4.977291,3214.7,3214.6,1.55494153]
[1641615398834,4.977291,3214.7,3214.6,2.24224153]
[1641615402438,4.977213,3214.8,3214.6,2.24224153]
[1641615402835,4.977213,3214.7,3214.6,2.24224153]
[1641615403035,4.977136,3214.8,3214.6,2.24224153]
[1641615403636,0.13959815,3214.7,3214.6,2.24224153]
[1641615403836,0.13959815,3214.7,3214.6,1.55494153]
[1641615404237,0.13959815,3214.8,3214.6,1.55494153]
[1641615404639,0.13959815,3214.8,3214.4,0.78445752]
[1641615404838,2.56059776,3214.7,3214.4,0.78445752]
[1641615405240,0.13959815,3214.6,3214.4,0.78445752]
[1641615405440,1.20019591,3214.6,3214.4,0.78445752]
[1641615405641,3.17708146,3214.6,3214.4,0.78445752]
[1641615405842,4.00958,3214.5,3214.4,0.78445752]
[1641615406043,4.14917815,3214.5,3214.4,0.78445752]
[1641615406948,0.13959815,3214.5,3214.4,0.78445752]
[1641615407349,0.13959815,3214.6,3214.4,0.78445752]
[1641615407552,0.13959815,3214.6,3214.4,1.63205752]
[1641615407753,2.61259393,3214.9,3214.4,3.18715139]
[1641615407754,0.13959815,3214.5,3214.4,3.18715139]
[1641615408155,0.13959815,3214.8,3214.4,3.18715139]
[1641615409753,0.13959815,3214.9,3214.4,3.18715139]
[1641615411856,1.06051707,3214.8,3214.4,3.18715139]
[1641615412257,0.13959815,3214.7,3214.4,3.18715139]
[1641615412761,0.13959815,3214.7,3214.6,1.55492944]
[1641615412959,1.97688555,3214.9,3214.6,1.55492944]
[1641615413261,0.13958044,3214.7,3214.6,1.55492944]
[1641615413459,1.97688555,3214.9,3214.6,1.55492944]
[1641615413659,1.97688555,3214.9,3214.7,0.264788]
[1641615413861,1.97688555,3214.9,3214.8,2.00479]
[1641615414261,1.97688555,3215.2,3214.8,2.00479]
[1641615414460,1.97688555,3215.2,3214.9,0.264788]
[1641615414661,1.97688555,3215.2,3215.0,0.640787]
[1641615414863,1.97688555,3215.2,3214.9,1.47902101]
[1641615415060,2.61998555,3215.2,3214.9,1.26952101]
[1641615415461,1.06041729,3215.1,3214.9,1.26952101]
[1641615415661,40.29759905,3215.1,3214.9,1.26952101]
[1641615416061,39.23718176,3215.1,3214.9,1.26952101]
[1641615416762,37.65190395,3215.1,3214.9,1.26952101]
[1641615416962,0.25342526,3215.0,3214.9,1.26952101]
[1641615417163,0.25342526,3215.0,3214.7,0.264788]
[1641615417164,1.75342526,3215.0,3214.3,1.55512772]
[1641615417466,1.5,3214.8,3214.3,1.55512772]
[1641615417864,2.00479,3214.4,3214.3,1.55512772]
[1641615418063,2.70469,3214.4,3214.3,1.55512772]
[1641615418267,2.70469,3214.4,3214.3,2.81177369]
[1641615419765,3.76526794,3214.4,3214.3,2.81177369]
[1641615420367,2.70469,3214.4,3214.3,2.81177369]
[1641615420567,4.29107603,3214.4,3214.3,2.81177369]
[1641615422973,5.3516495,3214.4,3214.3,2.81177369]
[1641615424170,5.3516495,3214.4,3214.3,1.25664597]
[1641615426874,6.8516495,3214.4,3213.2,0.77828696]
[1641615427174,1.5,3213.7,3213.2,0.77828696]
[1641615427375,4.0,3213.3,3213.2,0.77828696]
[1641615427573,4.0,3213.3,3213.0,1.55575435]
[1641615427775,5.5,3213.3,3213.1,1.3964518]
[1641615427974,4.00958,3213.2,3212.8,0.77828696]
[1641615428176,1.5,3212.9,3212.8,0.77828696]
[1641615428373,2.3961,3212.9,3212.8,0.77828696]
[1641615429175,2.52040608,3212.9,3212.8,0.77828696]
[1641615429376,2.52040608,3212.9,3212.2,0.77828696]
[1641615429575,2.52040608,3212.9,3212.3,0.640787]
[1641615429775,1.5,3212.7,3212.3,0.640787]
[1641615429976,4.0,3212.6,3212.3,0.640787]
[1641615430175,1.5,3212.7,3212.2,1.77098524]
[1641615430376,4.0,3212.5,3212.2,1.77098524]
[1641615430678,36.65143175,3212.3,3212.2,1.74608524]
[1641615430877,36.65143175,3212.3,3212.2,0.99269828]
[1641615431077,41.63236375,3212.3,3211.8,1.55636936]
[1641615431276,1.5,3212.2,3211.8,1.55636936]
[1641615431478,2.4158,3212.2,3211.8,1.55636936]
[1641615431878,2.4158,3212.2,3211.5,1.30180306]
[1641615432077,2.00479,3211.9,3211.6,0.86675827]
[1641615439884,2.76269,3211.9,3211.6,0.86675827]
[1641615442186,2.00479,3211.9,3211.6,0.86675827]
[1641615443189,2.00479,3212.8,3211.8,1.55636694]
[1641615443490,2.00479,3212.8,3212.2,1.55614412]
[1641615443687,2.00479,3212.8,3212.3,0.905575]
[1641615444187,33.89479,3213.2,3212.4,1.48247913]
[1641615444386,2.00479,3213.2,3212.4,1.48247913]
[1641615444788,2.00479,3213.2,3212.5,0.264788]
[1641615444988,2.00479,3213.2,3212.5,0.988488]
[1641615445588,0.12429355,3213.1,3212.5,0.988488]
[1641615446191,0.12429355,3213.1,3212.8,2.00479]
[1641615446389,0.12429355,3213.1,3212.8,3.56063391]
[1641615446588,0.12429355,3213.1,3212.8,3.82542191]
[1641615447189,0.12429355,3213.1,3212.9,1.28063609]
[1641615452198,2.00479,3213.0,3212.9,1.28063609]
[1641615452399,2.00479,3213.0,3212.1,3.56098498]
[1641615452598,2.00479,3213.0,3212.2,0.89795726]
[1641615452798,0.12429355,3212.9,3212.2,0.89795726]
[1641615453703,0.12429355,3212.9,3212.2,1.16274526]
[1641615455501,0.12429355,3212.9,3212.3,0.640787]
[1641615455908,0.12429355,3212.9,3212.4,0.264788]
[1641615457208,2.00479,3213.0,3212.4,0.264788]
[1641615457608,2.00479,3213.0,3212.5,1.21134098]
[1641615457808,0.12429465,3212.9,3212.6,0.264788]
[1641615458008,2.00479,3213.0,3212.6,0.264788]
[1641615458410,0.12429504,3212.9,3212.6,0.264788]
[1641615458611,2.00479,3213.0,3212.6,0.264788]
[1641615458811,2.00479,3213.0,3212.6,1.82075779]
[1641615459410,30.25600562,3213.4,3212.6,1.82075779]
[1641615459812,0.12429032,3213.3,3212.6,1.82075779]
[1641615460212,0.12429032,3213.3,3212.8,2.00479]
[1641615461316,0.12429032,3213.3,3212.8,2.269578]
[1641615464923,0.12429032,3213.3,3212.8,3.82542191]
[1641615466221,0.12429032,3213.3,3213.2,1.5556527]
[1641615466423,1.58754283,3214.1,3213.2,1.8204407]
[1641615466621,1.58754283,3214.1,3213.2,2.4612277]
[1641615466821,1.58754283,3214.1,3213.3,1.5]
[1641615467021,1.58754283,3214.1,3213.4,0.264788]
[1641615467221,1.58754283,3214.1,3213.4,1.095688]
[1641615467421,2.00479,3214.2,3213.4,1.095688]
[1641615467722,2.00479,3214.2,3214.1,1.55521479]
[1641615467922,2.00479,3214.2,3214.1,2.61760279]
[1641615468122,2.00479,3214.2,3214.1,3.57338215]
[1641615468522,2.00479,3214.2,3214.1,4.21416915]
[1641615468821,2.00479,3214.2,3214.1,3.57338215]
[1641615472526,2.00479,3214.2,3214.1,3.30859415]
[1641615476932,2.00479,3214.2,3214.1,1.75337936]
[1641615477130,2.00479,3214.2,3214.1,0.95577936]
[1641615479034,2.00479,3214.2,3213.6,1.55549057]
[1641615479235,4.0,3213.9,3213.6,1.55549057]
[1641615479837,4.0,3213.9,3213.7,1.47680031]
[1641615480538,2.00479,3213.8,3213.7,1.47680031]
[1641615483044,2.1153833,3213.8,3213.7,1.47680031]
[1641615486747,2.1153833,3213.8,3213.2,1.55569384]
[1641615486947,4.0,3213.3,3213.2,1.55569384]
[1641615487151,4.7452,3213.3,3213.0,1.55579307]
[1641615487448,4.8557933,3213.3,3213.0,1.55579307]
[1641615487649,4.8557933,3213.3,3213.1,1.41849522]
[1641615487849,0.1105933,3213.2,3213.1,1.41849522]
[1641615488448,2.1153833,3213.2,3213.1,1.41849522]
[1641615491057,3.6153833,3213.2,3212.3,1.55611022]
[1641615491259,5.5,3212.5,3211.9,1.55631608]
[1641615491459,1.5,3212.3,3211.5,1.55650502]
[1641615491657,4.0,3212.0,3211.5,1.55650502]
[1641615491856,4.0,3212.0,3211.9,1.31690635]
[1641615492458,8.00958,3212.0,3211.9,1.31690635]
[1641615492657,6.00479,3212.0,3211.9,1.31690635]
[1641615493057,2.00479,3212.0,3211.9,1.31690635]
[1641615496356,6.00479,3212.0,3211.9,1.31690635]
[1641615498258,2.11546228,3212.0,3211.9,1.31690635]
[1641615498658,2.00479,3212.0,3211.9,1.31690635]
[1641615501263,2.00479,3212.0,3211.9,2.8731982]
[1641615501465,2.00479,3212.0,3211.9,3.1379862]
[1641615502863,2.00479,3212.0,3211.9,2.8731982]
[1641615503062,2.61529,3212.0,3211.9,2.8731982]
[1641615514082,2.61529,3212.0,3211.9,1.31690635]
[1641615514282,6.61529,3212.0,3211.9,1.31690635]
[1641615515981,2.61529,3212.0,3211.9,1.31690635]
[1641615517985,6.61529,3212.0,3211.9,1.31690635]
[1641615525998,6.7259579,3212.0,3211.9,1.31690635]
[1641615526197,6.61529,3212.0,3211.9,1.31690635]
[1641615531503,2.61529,3212.0,3211.9,1.95300635]
[1641615531801,2.00479,3212.0,3211.9,1.95300635]
[1641615534507,0.4629,3212.2,3211.9,2.21779435]
[1641615534704,1.05497822,3212.6,3211.9,2.21779435]
[1641615534905,1.05497822,3212.6,3211.9,3.77412011]
[1641615535604,0.08288324,3212.7,3211.9,3.77412011]
[1641615536003,0.11064168,3212.6,3211.9,3.77412011]
[1641615536607,0.11064168,3212.6,3212.1,2.00479]
[1641615537006,0.11064168,3212.6,3212.1,2.269578]
[1641615537805,0.11064168,3212.6,3212.1,2.00479]
[1641615539006,0.08288476,3212.5,3212.1,2.00479]
[1641615540113,0.11065248,3212.4,3212.2,0.905575]
[1641615540513,0.08288476,3212.5,3212.2,0.905575]
[1641615540714,0.08288476,3212.5,3212.2,0.264788]
[1641615540913,2.00479,3212.8,3212.2,0.264788]
[1641615541815,2.00479,3212.8,3212.4,1.55587053]
[1641615542017,2.00479,3212.8,3212.5,0.89273192]
[1641615542416,2.48049,3212.8,3212.5,0.89273192]
[1641615543121,0.08287817,3212.7,3212.5,0.89273192]
[1641615544819,1.14016203,3212.7,3212.5,0.89273192]
[1641615545120,5.14016203,3212.7,3212.5,0.89273192]
[1641615545719,0.11064107,3212.6,3212.5,0.89273192]
[1641615546621,0.19351924,3212.6,3212.5,0.89273192]
[1641615546824,1.2508031,3212.6,3212.5,0.89273192]
[1641615547026,3.3272031,3212.6,3212.5,0.89273192]
[1641615547223,4.38831464,3212.6,3211.9,1.55627974]
[1641615547422,4.0,3212.0,3211.8,0.77711473]
[1641615548024,4.0,3212.0,3211.9,0.81121737]
[1641615549023,8.00958,3212.0,3211.9,0.81121737]
[1641615550533,21.46,3211.9,3211.2,0.77711473]
[1641615550728,4.0,3211.3,3210.8,1.30180306]
[1641615550929,4.00958,3210.9,3210.8,1.05480306]
[1641615551129,4.68008,3210.9,3210.8,1.05480306]
[1641615551530,4.68008,3210.9,3210.5,1.53927814]
[1641615551729,4.0,3210.6,3210.5,1.53927814]
[1641615551931,4.0,3210.6,3210.0,4.5457508]
[1641615552130,4.0,3210.6,3210.5,1.53187503]
[1641615554132,4.0,3210.6,3210.1,0.031]
[1641615554333,1.5,3210.2,3210.1,0.031]
[1641615554534,2.2418,3210.2,3210.1,0.031]
[1641615554734,7.22599,3210.2,3210.1,0.031]
[1641615554931,11.23557,3210.2,3210.1,0.031]
[1641615555331,11.23557,3210.2,3210.1,0.029]
[1641615555530,11.23557,3210.2,3210.1,0.88393911]
[1641615556433,11.3185045,3210.2,3210.1,0.88393911]
[1641615556633,11.3185045,3210.2,3208.9,31.6579]
[1641615556933,4.0,3209.3,3208.9,31.6579]
[1641615557135,4.8376,3209.3,3208.8,3.54406814]
[1641615557834,4.8376,3209.3,3209.2,1.09934852]
[1641615560439,2.00479,3209.5,3209.2,1.09934852]
[1641615560641,4.0,3209.9,3209.2,2.59934852]
[1641615560840,66.47239,3210.2,3209.3,0.264788]
[1641615561040,6.00479,3210.2,3209.4,2.00479]
[1641615561440,4.984811,3210.1,3209.4,2.00479]
[1641615562039,4.984811,3210.1,3209.5,0.264788]
[1641615562242,4.984811,3210.1,3209.5,1.100388]
[1641615562441,4.984811,3210.1,3209.6,1.5]
[1641615562639,1.05857766,3210.6,3210.0,1.55711579]
[1641615563041,1.05857766,3210.6,3210.3,2.00479]
[1641615563240,4.983957,3210.5,3210.3,2.916678]
[1641615563441,4.983957,3210.5,3210.4,1.32127133]
[1641615563640,1.05857766,3210.6,3210.4,1.32127133]
[1641615564043,1.05857766,3210.6,3210.5,0.264788]
[1641615564241,28.87408348,3211.1,3210.5,0.264788]
[1641615564843,5.09390969,3211.0,3210.5,0.264788]
[1641615565041,5.09390969,3211.0,3210.6,0.640787]
[1641615565443,0.11072869,3210.9,3210.6,0.640787]
[1641615565844,4.983259,3210.8,3210.6,0.640787]
[1641615566244,4.983259,3210.8,3210.5,0.264788]
[1641615566445,4.983259,3210.8,3210.4,2.87818348]
[1641615566745,4.983492,3210.9,3210.4,2.87818348]
[1641615566947,4.983492,3210.9,3210.5,0.640787]
[1641615567246,2.00479,3211.1,3210.6,0.264788]
[1641615570751,0.11072391,3211.0,3210.6,0.264788]
[1641615571154,0.11072391,3211.0,3210.4,2.87818348]
[1641615571554,4.0,3210.9,3210.4,2.87818348]
[1641615573756,4.0,3210.9,3210.4,1.32127133]
[1641615574157,0.11073249,3210.8,3210.4,1.32127133]
[1641615574859,2.00479,3211.1,3210.5,0.264788]
[1641615575459,0.11072655,3211.0,3210.5,1.012388]
[1641615575659,2.00479,3211.1,3210.5,1.012388]
[1641615577166,0.11072156,3211.0,3210.5,1.012388]
[1641615577566,2.00479,3211.1,3210.5,1.012388]
[1641615578865,2.00479,3211.1,3210.5,0.264788]
[1641615579066,0.1107227,3211.0,3210.5,0.264788]
[1641615581371,2.00479,3211.1,3210.5,0.264788]
[1641615582176,0.11072172,3211.0,3210.5,0.264788]
[1641615582974,0.11072172,3211.0,3210.4,1.32127133]
[1641615583875,4.0,3210.6,3210.4,1.32127133]
[1641615585377,1.6107505,3210.5,3209.4,4.33517136]
[1641615585576,1.6107505,3210.5,3209.4,3.56217739]
[1641615585577,4.0,3209.9,3209.4,3.56217739]
[1641615585780,4.7705,3209.9,3209.4,3.56217739]
[1641615585977,4.7705,3209.9,3209.5,1.24301575]
[1641615587178,6.77529,3209.9,3209.5,1.24301575]
[1641615589679,2.77529,3209.9,3209.4,3.56217739]
[1641615589881,4.0,3209.8,3209.4,3.56217739]
[1641615590081,4.0,3209.8,3209.4,2.00479]
[1641615590481,5.5,3209.8,3209.4,2.00479]
[1641615590681,5.5,3209.8,3209.2,0.031]
[1641615590884,0.11078245,3209.7,3209.2,0.031]
[1641615591082,4.0,3209.3,3209.2,0.031]
[1641615592086,8.985588,3209.3,3209.2,0.031]
[1641615592283,9.09638905,3209.3,3209.2,0.031]
[1641615593385,10.59638905,3209.3,3209.2,1.43022264]
[1641615593583,10.485588,3209.3,3209.2,1.43022264]
[1641615593787,10.59641299,3209.3,3209.2,1.43022264]
[1641615594185,9.09641299,3209.3,3209.2,1.43022264]
[1641615595286,9.09641299,3209.3,3209.2,0.031]
[1641615597387,5.09641299,3209.3,3209.2,0.031]
[1641615598388,4.985588,3209.3,3209.2,1.87184431]
[1641615598890,31.61549728,3209.9,3209.2,2.13663231]
[1641615599289,31.61549728,3209.9,3209.6,2.00479]
[1641615599490,4.985122,3209.8,3209.6,2.00479]
[1641615599891,4.985122,3209.8,3209.6,2.269578]
[1641615603594,8.985122,3209.8,3209.6,2.00479]
[1641615607199,4.985122,3209.8,3209.6,2.00479]
[1641615610403,4.985122,3209.8,3209.5,2.05147335]
[1641615610804,0.11078406,3209.7,3209.5,2.05147335]
[1641615611205,4.985044,3209.6,3209.5,2.05147335]
[1641615611405,6.989834,3209.6,3209.5,2.05147335]
[1641615612107,4.985044,3209.6,3209.5,2.05147335]
[1641615612307,1.05857766,3210.0,3209.5,2.05147335]
[1641615612906,1.05857766,3210.0,3209.6,0.264788]
[1641615613107,4.984811,3209.9,3209.6,0.264788]
[1641615613309,1.32028054,3210.3,3209.8,7.06677823]